bitfinex/quotes_ETHUSD_20260117
["timestamp","ask_amount","ask_price","bid_price","bid_amount"]
[1768629834480,0.502,3287.8,3287.3,3.40784228]
[1768629834987,3.84219156,3287.8,3287.3,3.40784228]
[1768629835712,6.88374042,3287.8,3287.3,3.40784228]
[1768629836903,3.84219156,3287.8,3287.3,3.40784228]
[1768629839386,3.84219156,3287.8,3287.3,7.20396296]
[1768629844815,3.84219156,3287.8,3287.4,3.40784228]
[1768629846310,3.34019156,3287.8,3287.4,3.40784228]
[1768629846513,0.502,3287.7,3287.4,3.40784228]
[1768629846712,0.00080687,3287.9,3287.4,3.0418702]
[1768629846914,0.502,3287.8,3287.5,3.40784228]
[1768629848286,0.502,3287.8,3287.4,7.24263572]
[1768629850220,0.00080646,3288.2,3287.5,3.40784228]
[1768629850514,0.78598579,3288.1,3287.5,3.40784228]
[1768629850718,0.78598579,3288.0,3287.6,3.40784228]
[1768629850914,0.502,3288.0,3287.6,3.40784228]
[1768629852419,0.502,3288.0,3287.7,3.40784228]
[1768629852819,0.502,3288.1,3287.7,3.40784228]
[1768629855207,0.28408289,3288.0,3287.7,3.40784228]
[1768629855521,0.502,3288.1,3287.7,3.40784228]
[1768629856226,0.28413057,3288.0,3287.7,3.40784228]
[1768629856522,0.502,3288.1,3287.7,3.40784228]
[1768629856725,0.28411991,3288.0,3287.7,3.40784228]
[1768629856904,0.502,3288.1,3287.7,3.40784228]
[1768629857090,0.28411991,3288.0,3287.7,3.40784228]
[1768629857427,0.502,3288.1,3287.7,3.40784228]
[1768629857629,0.28418493,3288.0,3287.7,3.40784228]
[1768629857829,0.502,3288.1,3287.7,3.40784228]
[1768629858017,0.28418482,3288.0,3287.7,3.40784228]
[1768629858218,0.502,3288.1,3287.7,3.40784228]
[1768629858518,0.28427154,3288.0,3287.7,3.40784228]
[1768629858705,3.84219156,3288.1,3287.7,3.40784228]
[1768629858891,0.28427132,3288.0,3287.7,3.40784228]
[1768629859088,3.34019156,3288.1,3287.7,3.40784228]
[1768629859335,0.28427117,3288.0,3287.7,3.40784228]
[1768629859529,3.84219156,3288.1,3287.7,3.40784228]
[1768629859735,0.28429721,3288.0,3287.7,3.40784228]
[1768629860147,3.84219156,3288.1,3287.7,3.40784228]
[1768629860349,0.28433392,3288.0,3287.7,3.40784228]
[1768629860501,0.001,3287.8,3287.7,3.40784228]
[1768629864097,0.001,3287.8,3287.6,3.22035085]
[1768629866440,0.001,3287.8,3287.6,6.26205756]
[1768629866633,0.001,3287.8,3287.6,3.22035085]
[1768629868735,0.001,3287.8,3287.6,6.26206707]
[1768629872842,0.001,3287.8,3287.6,6.26406707]
[1768629874448,0.001,3287.8,3287.6,0.002]
[1768629879175,3.12175135,3287.9,3287.6,0.002]
[1768629879345,0.28485765,3287.8,3287.6,0.002]
[1768629879551,3.12175135,3287.9,3287.6,0.002]
[1768629879858,0.28485788,3287.8,3287.6,0.002]
[1768629880036,3.12175135,3287.9,3287.6,0.002]
[1768629880233,0.28485782,3287.8,3287.6,0.002]
[1768629880440,3.14128307,3287.8,3287.6,0.002]
[1768629885177,3.64328307,3288.0,3287.9,0.002]
[1768629885470,3.92817605,3288.0,3287.9,0.002]
[1768629894706,0.78689298,3288.0,3287.9,0.002]
[1768629895068,0.28489298,3288.0,3287.9,0.002]
[1768629901000,0.502,3288.1,3287.9,0.002]
[1768629901208,0.00080646,3288.2,3287.9,0.002]
[1768629901377,0.78687147,3288.1,3287.9,0.002]
[1768629901579,0.502,3288.1,3287.9,0.002]
[1768629902300,0.502,3288.1,3287.9,2.96444143]
[1768629902679,0.502,3288.1,3287.9,0.002]
[1768629905613,3.61071348,3288.2,3287.9,0.002]
[1768629905811,0.28478117,3288.1,3287.9,0.002]
[1768629906018,3.61071348,3288.2,3287.9,0.002]
[1768629906183,0.28476965,3288.1,3287.9,0.002]
[1768629906382,3.61071348,3288.2,3287.9,0.002]
[1768629906675,0.28476693,3288.1,3287.9,0.002]
[1768629906913,0.50280646,3288.2,3287.9,0.002]
[1768629907215,0.28476734,3288.1,3287.9,0.002]
[1768629907415,0.50280646,3288.2,3287.9,0.002]
[1768629907613,0.28475554,3288.1,3287.9,0.002]
[1768629907776,0.50280646,3288.2,3287.9,0.002]
[1768629907976,0.2847556,3288.1,3287.9,0.002]
[1768629908178,0.50280646,3288.2,3287.9,0.002]
[1768629910944,0.50280646,3288.2,3287.9,2.96444143]
[1768629910945,0.00080646,3288.2,3287.9,2.96444143]
[1768629911110,0.00080646,3288.2,3288.0,2.96244143]
[1768629912432,0.502,3288.4,3288.1,3.04127003]
[1768629913102,0.502,3288.4,3288.1,6.00371146]
[1768629913302,0.502,3288.4,3288.2,2.96244143]
[1768629916944,0.502,3288.4,3288.1,6.00371146]
[1768629917866,0.502,3288.4,3288.1,2.96244143]
[1768629918016,0.502,3288.4,3288.1,6.00369883]
[1768629919045,0.502,3288.4,3288.1,2.96244143]
[1768629920839,0.502,3288.4,3288.1,6.00367972]
[1768629942372,0.502,3288.4,3288.1,2.96244143]
[1768629946036,0.502,3288.4,3288.1,6.00369037]
[1768629946238,0.502,3288.4,3288.1,2.96244143]
[1768629949476,0.502,3288.4,3288.0,3.04136253]
[1768629949675,0.502,3288.4,3288.0,5.93192495]
[1768629951365,0.502,3288.4,3288.0,6.91994482]
[1768629953673,0.502,3288.4,3288.0,9.96130735]
[1768629954179,0.502,3288.4,3288.0,6.91994482]
[1768629956478,0.502,3288.4,3288.3,0.002]
[1768629956678,0.78706523,3288.4,3288.3,0.002]
[1768629958083,0.78706523,3288.4,3288.3,2.75713198]
[1768629958250,0.78706523,3288.4,3288.3,0.002]
[1768629959573,2.70824683,3288.6,3288.3,0.002]
[1768629959758,3.04134227,3288.9,3288.4,2.75513198]
[1768629959963,3.21105411,3288.9,3288.4,2.75513198]
[1768629960268,2.70905411,3288.9,3288.4,2.75513198]
[1768629960581,3.21024683,3288.8,3288.3,3.33696718]
[1768629960793,3.21024683,3288.8,3288.4,0.33369672]
[1768629961090,3.21024683,3288.8,3288.4,6.12978272]
[1768629961392,0.502,3288.8,3288.4,6.12978272]
[1768629964493,0.502,3288.8,3288.4,3.0888287]
[1768629964663,0.502,3288.8,3288.4,6.1298098]
[1768629967494,0.502,3288.8,3288.4,3.0888287]
[1768629967798,0.502,3288.8,3288.4,5.79611268]
[1768629969401,0.001,3288.5,3288.4,5.79611268]
[1768629969587,0.001,3288.5,3288.4,3.0409807]
[1768629969987,3.21024683,3288.8,3288.4,3.0409807]
[1768629970295,2.70824683,3288.8,3288.4,3.0409807]
[1768629970490,3.21024683,3288.8,3288.4,3.0409807]
[1768629972797,2.70824683,3288.8,3288.4,3.0409807]
[1768629973008,3.21024683,3288.8,3288.4,3.0409807]
[1768629973500,3.21024683,3288.8,3288.3,5.79819851]
[1768629975128,0.00080728,3288.9,3288.3,5.79819851]
[1768629975129,0.00080728,3288.9,3288.4,2.75513198]
[1768629975271,3.21024683,3289.2,3288.7,4.43823557]
[1768629975475,0.502,3289.1,3288.6,2.75513198]
[1768629975692,3.21024683,3289.1,3288.6,2.75513198]
[1768629975979,3.21024683,3289.1,3288.7,2.75513198]
[1768629976591,3.21024683,3289.1,3288.4,2.75513198]
[1768629976801,3.21024683,3289.1,3288.4,2.7855419]
[1768629977502,3.21024683,3289.1,3288.5,5.79603208]
[1768629978414,3.21024683,3289.1,3288.5,8.83693218]
[1768629978616,3.21024683,3289.1,3288.5,10.25304269]
[1768629979016,3.21024683,3289.1,3288.6,2.75513198]
[1768629979615,3.21024683,3289.1,3288.6,5.79585213]
[1768629981076,0.001,3288.8,3288.6,5.79585213]
[1768629981278,3.21024683,3289.1,3288.6,5.79585213]
[1768629981489,3.21024683,3289.1,3288.6,6.82114579]
[1768629981692,3.21024683,3289.1,3288.6,3.78042564]
[1768629982116,3.21024683,3289.1,3288.6,6.82123097]
[1768629983413,3.21024683,3289.1,3288.6,3.78042564]
[1768629983414,3.54237502,3289.1,3288.6,3.78042564]
[1768629983635,2.76654968,3289.0,3288.6,1.02529366]
[1768629993254,0.001,3288.8,3288.6,1.02529366]
[1768629993459,0.001,3288.8,3288.7,0.66047851]
[1768629994025,0.001,3288.8,3288.5,3.04087538]
[1768629994458,0.001,3288.8,3288.5,5.70132143]
[1768629999149,0.001,3288.8,3288.5,2.66044605]
[1768629999355,0.001,3288.8,3288.4,5.70140308]
[1768630005272,0.001,3288.8,3288.7,0.002]
[1768630043788,0.001,3288.8,3288.7,2.57544553]
[1768630045411,0.001,3288.8,3288.7,2.83299008]
[1768630045612,3.39585242,3289.3,3288.8,2.57344553]
[1768630045613,2.48383338,3289.3,3288.8,2.57344553]
[1768630045813,0.502,3289.2,3288.8,2.57344553]
[1768630046015,2.98583338,3289.2,3288.8,2.57344553]
[1768630046312,2.98583338,3289.2,3288.7,3.04271517]
[1768630049410,2.98583338,3289.2,3288.7,2.57544553]
[1768630051614,2.98583338,3289.2,3288.7,5.61610045]
[1768630055332,0.001,3288.9,3288.7,5.61610045]
[1768630055486,0.001,3288.9,3288.7,6.48179511]
[1768630060919,0.001,3288.9,3288.7,3.90834958]
[1768630081269,0.502,3289.2,3289.0,0.002]
[1768630081634,3.04573269,3289.2,3289.0,0.002]
[1768630083781,3.95775173,3289.2,3289.0,0.002]
[1768630088573,3.45575173,3289.2,3289.0,0.002]
[1768630088869,0.001,3289.4,3289.0,2.53922624]
[1768630089055,0.001,3289.4,3289.1,0.25392262]
[1768630089254,0.001,3289.4,3289.0,2.53922624]
[1768630090774,0.001,3289.4,3289.0,5.57966022]
[1768630092870,0.503,3289.4,3289.1,2.53722624]
[1768630093169,0.002,3289.2,3289.1,2.53722624]
[1768630097750,0.002,3289.2,3289.1,5.57757162]
[1768630097958,0.002,3289.2,3289.1,2.53722624]
[1768630101490,0.503,3289.4,3289.1,5.57757162]
[1768630102049,0.502,3289.5,3289.2,2.50729553]
[1768630104275,0.502,3289.5,3289.2,5.54753924]
[1768630104477,0.502,3289.5,3289.2,2.50729553]
[1768630106690,0.502,3289.5,3289.2,5.54754591]
[1768630107172,3.14846793,3289.7,3289.2,6.40653699]
[1768630107354,3.14846793,3289.7,3289.4,0.001]
[1768630119603,3.15046793,3289.7,3289.4,0.001]
[1768630122306,6.19026576,3289.7,3289.4,0.001]
[1768630134030,2.48906282,3289.6,3289.4,0.001]
[1768630136224,5.52899539,3289.6,3289.4,0.001]
[1768630142438,2.77397754,3289.5,3288.6,1e-08]
[1768630142638,2.48906282,3289.1,3288.3,0.002]
[1768630142804,2.48906282,3288.9,3288.3,0.002]
[1768630143128,2.48906282,3288.7,3288.3,0.002]
[1768630143328,2.99106282,3288.6,3288.3,0.002]
[1768630143524,3.90327321,3288.6,3288.3,0.002]
[1768630143717,2.48906282,3288.5,3288.3,0.002]
[1768630144304,0.91221039,3288.4,3288.3,0.002]
[1768630144634,5.53014787,3288.3,3288.0,0.002]
[1768630144841,0.502,3288.2,3288.0,0.002]
[1768630145349,0.91226864,3288.1,3288.0,0.002]
[1768630145501,3.40133146,3288.1,3288.0,0.002]
[1768630146415,0.91226864,3288.1,3288.0,0.002]
[1768630155356,0.91226864,3288.1,3287.9,2.43753894]
[1768630155869,0.91226864,3288.1,3287.9,2.28519276]
[1768630157179,0.91226864,3288.1,3288.0,0.002]
[1768630169570,3.43704839,3288.1,3288.0,0.002]
[1768630169774,2.52477975,3288.0,3287.6,0.002]
[1768630170481,3.43709,3288.0,3287.6,0.002]
[1768630173614,6.47847038,3288.0,3287.6,0.002]
[1768630176573,0.91231025,3288.0,3287.7,2.54452352]
[1768630180597,0.91231025,3288.0,3287.9,0.002]
[1768630186532,3.54328586,3288.1,3287.9,0.002]
[1768630192838,0.502,3288.1,3287.9,0.002]
[1768630193448,3.54327526,3288.1,3287.9,0.002]
[1768630195438,0.502,3288.1,3287.9,0.002]
[1768630195949,2.85553092,3288.4,3287.9,0.002]
[1768630196129,0.502,3288.3,3287.9,0.002]
[1768630196450,1.14185825,3288.3,3287.9,2.55816712]
[1768630198851,4.18302462,3288.3,3287.9,2.55816712]
[1768630200426,3.68102462,3288.3,3287.9,2.55816712]
[1768630200612,0.502,3288.2,3287.9,2.55816712]
[1768630200808,3.54320247,3288.2,3287.9,2.55816712]
[1768630201161,1.50996432,3288.2,3287.9,2.55816712]
[1768630201322,0.502,3288.2,3287.9,2.55816712]
[1768630202627,3.54320962,3288.2,3287.9,2.55816712]
[1768630203850,3.54320962,3288.2,3287.9,0.002]
[1768630204817,0.502,3288.2,3287.9,0.002]
[1768630206526,3.54320932,3288.2,3287.9,0.002]
[1768630207740,0.502,3288.2,3287.9,0.002]
[1768630208747,3.54323908,3288.2,3287.9,0.002]
[1768630211753,0.502,3288.2,3287.9,0.002]
[1768630212654,3.54318634,3288.2,3287.9,0.002]
[1768630217563,3.04118634,3288.2,3287.9,0.002]
[1768630217769,0.502,3288.2,3287.9,0.002]
[1768630218073,3.54318154,3288.2,3287.9,0.002]
[1768630219070,0.502,3288.2,3287.9,0.002]
[1768630219575,3.54323904,3288.2,3287.9,0.002]
[1768630221369,0.502,3288.2,3287.9,0.002]
[1768630221668,3.54319714,3288.2,3287.9,0.002]
[1768630222669,3.04119714,3288.2,3287.9,0.002]
[1768630222965,3.54319714,3288.2,3287.9,0.002]
[1768630224137,0.502,3288.2,3287.9,0.002]
[1768630224767,3.54321525,3288.2,3287.9,0.002]
[1768630226470,3.04121525,3288.2,3287.9,0.002]
[1768630226767,3.54321525,3288.2,3287.9,0.002]
[1768630236485,3.54324949,3288.2,3287.9,0.002]
[1768630237088,6.58449898,3288.2,3287.9,0.002]
[1768630237388,2.55108178,3288.1,3287.9,0.002]
[1768630238682,2.55108178,3288.0,3287.9,0.002]
[1768630239087,2.55108178,3288.0,3287.6,0.002]
[1768630240200,2.55108178,3288.0,3287.6,2.61411701]
[1768630240701,3.05308178,3288.0,3287.6,2.61411701]
[1768630241206,0.502,3288.0,3287.6,2.61411701]
[1768630244494,3.54339207,3288.0,3287.6,0.002]
[1768630244701,2.55108178,3287.9,3287.6,0.002]
[1768630249004,3.54339207,3288.0,3287.6,0.002]
[1768630249202,6.09447385,3288.0,3287.6,0.002]
[1768630249409,6.09447385,3288.0,3287.6,2.61411701]
[1768630251490,6.09447385,3288.0,3287.9,0.002]
[1768630256210,3.05308178,3288.0,3287.9,0.002]
[1768630258714,6.09444431,3288.0,3287.6,0.002]
[1768630261120,2.51763017,3287.9,3287.6,0.002]
[1768630264313,3.54336253,3288.0,3287.6,0.002]
[1768630264618,6.0609927,3288.0,3287.6,0.002]
[1768630264819,3.01963017,3288.0,3287.6,0.002]
[1768630270324,6.06101377,3288.0,3287.6,0.002]
[1768630275606,6.06101377,3288.0,3287.9,0.002]
[1768630275809,7.0617315,3288.0,3287.9,0.002]
[1768630282229,4.54410133,3288.0,3287.9,0.002]
[1768630283532,1.50271773,3288.0,3287.9,0.002]
[1768630284534,4.54408026,3288.0,3287.9,0.002]
[1768630302533,2.49111965,3288.4,3287.9,2.64296329]
[1768630302726,3.82788376,3288.3,3287.9,2.64296329]
[1768630302926,0.28474025,3288.2,3287.9,2.64296329]
[1768630303128,3.54313894,3288.3,3287.9,2.64296329]
[1768630303424,0.28474186,3288.2,3287.9,2.64296329]
[1768630303635,0.93600055,3288.2,3287.9,2.64296329]
[1768630305156,3.04127003,3288.1,3287.9,0.002]
[1768630311265,5.53238968,3288.1,3287.9,0.002]
[1768630311566,3.04127003,3288.1,3287.9,0.002]
[1768630316765,3.97721968,3288.2,3287.9,0.002]
[1768630320874,3.97721968,3288.2,3287.9,2.69624745]
[1768630321473,1.02424106,3288.1,3287.9,2.69624745]
[1768630323873,0.502,3288.0,3287.9,2.69624745]
[1768630325073,3.04121913,3288.2,3287.9,2.69624745]
[1768630325274,0.502,3288.1,3287.9,2.69624745]
[1768630325675,3.04121913,3288.2,3287.9,2.69624745]
[1768630325856,3.92165145,3288.2,3287.9,2.69624745]
[1768630326058,0.502,3288.1,3287.9,2.69624745]
[1768630335786,3.54327609,3288.1,3287.9,2.69624745]
[1768630336587,6.26536771,3288.1,3287.9,0.002]
[1768630342556,3.54327609,3288.1,3287.9,0.002]
[1768630350365,0.502,3288.1,3287.9,0.002]
[1768630353579,3.54329668,3288.1,3287.9,0.002]
[1768630359781,6.27872326,3288.1,3287.9,0.002]
[1768630360164,3.54329668,3288.1,3287.9,0.002]
[1768630361701,4.56333018,3288.1,3287.9,0.002]
[1768630367518,0.91231025,3288.0,3287.9,0.002]
[1768630369410,3.95367278,3288.0,3287.9,0.002]
[1768630373011,3.95367278,3288.0,3287.8,2.50378662]
[1768630373412,3.04136253,3288.0,3287.8,1.25189331]
[1768630373712,0.91231025,3287.9,3287.7,2.5095008]
[1768630377914,0.91231025,3287.9,3287.7,2.35232352]
[1768630378083,0.91231025,3287.9,3287.7,2.11705782]
[1768630378286,3.95377529,3287.9,3287.7,2.11705782]
[1768630378789,3.04146504,3287.9,3287.7,1.98474171]
[1768630379020,0.91231025,3287.8,3287.7,1.98474171]
[1768630382691,0.91231025,3287.8,3287.6,0.002]
[1768630383291,3.953875,3287.8,3287.6,0.002]
[1768630383691,2.70657633,3287.7,3287.3,0.002]
[1768630383926,3.20857633,3287.7,3287.2,1e-08]
[1768630384106,2.70657633,3287.6,3287.2,1e-08]
[1768630384301,1.41436852,3287.7,3287.2,1e-08]
[1768630384302,3.11867082,3287.5,3287.2,1e-08]
[1768630384825,6.16050534,3287.5,3287.2,1e-08]
[1768630385121,0.91240737,3287.4,3287.2,1e-08]
[1768630388591,3.6189837,3287.4,3287.2,1e-08]
[1768630389125,2.70657633,3287.4,3287.2,1e-08]
[1768630389317,0.91243234,3287.3,3287.2,1e-08]
[1768630391029,2.08052572,3287.3,3287.2,1e-08]
[1768630391229,1.41443234,3287.3,3287.2,1e-08]
[1768630392322,0.91243234,3287.3,3287.2,1e-08]
[1768630392521,1.41443234,3287.3,3287.2,1e-08]
[1768630392748,4.4564425,3287.3,3287.2,1e-08]
[1768630394130,1.41443234,3287.3,3287.2,1e-08]
[1768630398307,4.4564425,3287.3,3287.2,1e-08]
[1768630401938,1.41443234,3287.3,3287.2,1e-08]
[1768630403942,4.17315379,3287.3,3287.2,1e-08]
[1768630404442,1.41443234,3287.3,3287.2,1e-08]
[1768630406345,0.91243234,3287.3,3287.2,1e-08]
[1768630406548,1.41443234,3287.3,3287.2,1e-08]
[1768630417258,0.91243234,3287.3,3287.2,1e-08]
[1768630417458,1.41443234,3287.3,3287.2,1e-08]
[1768630420654,1.41443234,3287.3,3287.2,2.62134575]
[1768630421462,1.41443234,3287.3,3287.2,2.45751165]
[1768630422853,0.91243234,3287.3,3287.2,2.45751165]
[1768630423059,1.41443234,3287.3,3287.2,2.45751165]
[1768630427160,0.91243234,3287.3,3287.2,2.45751165]
[1768630427365,0.502,3287.4,3287.2,2.45751165]
[1768630427955,0.502,3287.4,3287.0,2.62134574]
[1768630430764,0.502,3287.4,3287.0,5.66360464]
[1768630430945,0.502,3287.4,3287.1,2.62134574]
[1768630431350,0.502,3287.4,3287.1,3.21832815]
[1768630431873,0.502,3287.4,3287.2,2.65683138]
[1768630435652,0.9124712,3287.7,3287.3,2.65683138]
[1768630435850,1.4144712,3287.7,3287.3,2.65683138]
[1768630439979,0.9124712,3287.7,3287.3,2.65683138]
[1768630440179,1.4144712,3287.7,3287.3,2.65683138]
[1768630440362,4.45612757,3287.7,3287.3,2.65683138]
[1768630440562,3.54365637,3287.7,3287.3,2.65683138]
[1768630441183,0.502,3287.7,3287.3,2.65683138]
[1768630444286,3.54367855,3287.7,3287.3,2.65683138]
[1768630445309,0.502,3287.7,3287.3,2.65683138]
[1768630449684,0.001,3287.4,3287.3,2.65683138]
[1768630450354,0.91245177,3287.8,3287.4,2.65683138]
[1768630450555,0.502,3287.7,3287.4,2.65683138]
[1768630451680,0.502,3287.7,3287.4,3.04191171]
[1768630451888,0.502,3287.8,3287.5,2.65683138]
[1768630457615,0.91240182,3287.9,3287.5,2.65683138]
[1768630457775,0.502,3287.9,3287.6,3.22974138]
[1768630458108,0.502,3287.9,3287.4,5.69868084]
[1768630459606,3.54575066,3288.0,3287.4,3.04184946]
[1768630459777,0.502,3287.9,3287.5,2.65683138]
[1768630462209,3.54574233,3288.0,3287.5,5.69861368]
[1768630462503,0.502,3287.9,3287.5,2.65683138]
[1768630462813,0.502,3287.9,3287.5,5.69864273]
[1768630465013,0.502,3287.9,3287.5,2.65683138]
[1768630466720,0.502,3287.9,3287.5,5.69863917]
[1768630469010,2.63336549,3288.0,3287.5,5.69863917]
[1768630469217,0.502,3287.9,3287.5,5.69863917]
[1768630469398,0.502,3287.9,3287.5,2.65683138]
[1768630470527,2.63336549,3288.0,3287.5,5.69861975]
[1768630470729,0.502,3287.9,3287.5,5.69861975]
[1768630472427,0.502,3287.9,3287.5,5.54021974]
[1768630472628,0.502,3287.9,3287.5,2.49843137]
[1768630473400,0.001,3287.6,3287.5,2.49843137]
[1768630473726,0.502,3287.9,3287.5,2.49843137]
[1768630485945,0.001,3287.6,3287.5,2.49843137]
[1768630486244,0.502,3287.9,3287.5,2.49843137]
[1768630495553,2.6284187,3288.0,3287.5,2.49843137]
[1768630495755,0.502,3287.9,3287.5,2.49843137]
[1768630496951,2.6284187,3288.0,3287.5,2.49843137]
[1768630497120,0.502,3287.9,3287.5,5.54024467]
[1768630497539,0.502,3287.9,3287.5,2.49843137]
[1768630497748,0.001,3287.6,3287.5,2.49843137]
[1768630497924,0.502,3287.9,3287.5,3.41365281]
[1768630499171,0.502,3287.9,3287.5,6.45545622]
[1768630499344,2.6284187,3288.0,3287.5,6.45545622]
[1768630499541,0.502,3287.9,3287.5,2.49843137]
[1768630500962,2.65588027,3287.8,3287.3,6.1587584]
[1768630501158,2.65588027,3287.8,3287.3,3.61186896]
[1768630501661,2.65588027,3287.8,3287.3,0.56989742]
[1768630502265,2.65588027,3287.8,3287.3,3.61190539]
[1768630505470,2.65588027,3287.8,3287.3,6.15879483]
[1768630505654,2.60333056,3287.8,3287.4,0.61587948]
[1768630505832,2.60333056,3287.8,3287.4,3.16276892]
[1768630506373,5.69728183,3288.0,3287.4,3.16276892]
[1768630506534,0.502,3287.9,3287.4,3.16276892]
[1768630507167,2.65588027,3287.8,3287.4,0.61587948]
[1768630507379,2.65588027,3287.8,3287.3,2.54688944]
[1768630508264,2.65588027,3287.8,3287.3,5.58888584]
[1768630510075,2.65588027,3287.8,3287.6,0.002]
[1768630511164,0.502,3287.9,3287.6,0.002]
[1768630511351,3.15788027,3287.9,3287.6,0.002]
[1768630544414,0.502,3287.9,3287.6,0.002]
[1768630550788,2.5834595,3288.0,3287.6,0.002]
[1768630550999,0.502,3287.9,3287.6,0.002]
[1768630553817,0.502,3287.9,3287.6,0.03241732]
[1768630554018,0.502,3287.9,3287.6,0.002]
[1768630554720,0.502,3287.9,3287.6,0.03241732]
[1768630555019,0.502,3287.9,3287.6,0.002]
[1768630564027,2.5834595,3288.0,3287.6,2.57744135]
[1768630564228,0.502,3287.9,3287.6,3.13936569]
[1768630565096,0.502,3287.9,3287.6,0.56392434]
[1768630569741,3.03053868,3287.9,3287.6,0.002]
[1768630572439,2.52853868,3287.9,3287.6,0.002]
[1768630588253,2.736727,3287.8,3287.3,0.002]
[1768630590354,2.736727,3287.7,3287.3,0.002]
[1768630592953,2.736727,3287.7,3287.6,0.002]
[1768630593154,3.31455699,3287.7,3287.6,0.002]
[1768630598974,2.72970868,3287.6,3286.2,0.00280728]
[1768630599193,2.72970868,3286.6,3286.2,0.00280728]
[1768630599334,4.44025118,3286.7,3285.9,0.002]
[1768630599335,2.72970868,3286.4,3285.9,0.002]
[1768630599667,7.16995986,3286.4,3285.9,0.002]
[1768630599863,2.72970868,3286.3,3285.9,0.002]
[1768630600234,0.91282936,3286.3,3285.9,0.002]
[1768630600434,2.72970868,3286.2,3285.9,0.002]
[1768630600836,2.72970868,3286.0,3285.9,0.002]
[1768630601630,3.6425547,3286.0,3285.9,0.002]
[1768630603459,0.85413023,3286.0,3285.9,0.002]
[1768630607972,0.502,3286.1,3285.9,0.002]
[1768630615954,2.67225767,3286.4,3285.9,0.002]
[1768630616162,0.502,3286.3,3285.9,0.002]
[1768630616569,0.502,3286.3,3285.9,2.5832241]
[1768630618167,2.67225767,3286.2,3285.9,0.002]
[1768630619078,0.502,3286.3,3286.0,2.5812241]
[1768630620193,0.502,3286.3,3285.9,3.04529999]
[1768630620491,0.502,3286.3,3285.9,0.002]
[1768630620992,3.17425767,3286.3,3285.9,0.002]
[1768630623712,2.67225767,3286.2,3285.9,0.002]
[1768630626690,2.67225767,3286.1,3285.9,0.002]
[1768630641034,3.17425767,3286.3,3285.9,0.002]
[1768630645341,0.502,3286.3,3285.9,2.77113805]
[1768630646337,5.74255156,3286.5,3285.9,2.77113805]
[1768630646535,0.7867434,3286.4,3285.9,2.77113805]
[1768630646737,0.502,3286.4,3285.9,2.77113805]
[1768630648845,3.54485073,3286.4,3285.9,2.77113805]
[1768630649742,0.502,3286.4,3285.9,2.77113805]
[1768630650104,3.54484427,3286.4,3285.9,2.77113805]
[1768630650309,0.502,3286.4,3285.9,2.77113805]
[1768630650912,6.30149295,3286.4,3285.9,2.77113805]
[1768630652312,5.79949295,3286.4,3285.9,2.77113805]
[1768630652513,6.30149295,3286.4,3285.9,2.77113805]
[1768630652841,3.25863463,3286.4,3285.9,2.77113805]
[1768630653148,0.001,3286.1,3285.9,2.77113805]
[1768630654725,0.001,3286.1,3285.9,5.81442785]
[1768630654929,0.001,3286.1,3285.9,2.77113805]
[1768630655575,0.001,3286.1,3285.9,5.81443978]
[1768630656252,0.001,3286.1,3285.9,2.77113805]
[1768630663967,0.001,3286.1,3285.9,5.81443686]
[1768630664966,0.001,3286.1,3285.9,2.77113805]
[1768630666662,0.001,3286.1,3286.0,2.76890433]
[1768630668083,0.502,3286.4,3286.0,3.3503253]
[1768630669584,3.54487909,3286.4,3286.0,2.76890433]
[1768630669784,0.502,3286.4,3286.0,2.76890433]
[1768630669981,5.79945158,3286.5,3286.0,2.76890433]
[1768630670185,0.28474519,3286.4,3286.0,2.76890433]
[1768630670387,6.30145158,3286.5,3286.0,2.76890433]
[1768630670617,0.28474319,3286.4,3286.0,2.76890433]
[1768630670757,6.30145158,3286.5,3286.0,2.76890433]
[1768630670956,0.28474247,3286.4,3286.0,2.76890433]
[1768630671168,6.30145158,3286.5,3286.0,2.76890433]
[1768630671368,0.28474246,3286.4,3286.0,2.76890433]
[1768630671656,6.30145158,3286.5,3286.0,2.76890433]
[1768630671865,6.30140591,3286.5,3286.0,2.76890433]
[1768630672065,5.79940591,3286.5,3286.0,2.76890433]
[1768630672307,6.30140591,3286.5,3286.0,2.76890433]
[1768630673462,5.79940591,3286.5,3286.0,2.76890433]
[1768630673661,6.30140591,3286.5,3286.0,2.76890433]
[1768630674493,5.79940591,3286.5,3286.0,2.76890433]
[1768630674666,6.30140591,3286.5,3286.0,2.76890433]
[1768630675395,0.28468461,3286.4,3286.0,2.76890433]
[1768630675599,6.30140591,3286.5,3286.0,2.76890433]
[1768630675987,0.28468049,3286.4,3286.0,2.76890433]
[1768630676199,6.30140591,3286.5,3286.0,2.76890433]
[1768630676405,3.25863463,3286.5,3286.0,2.76890433]
[1768630677171,0.001,3286.2,3286.0,2.76890433]
[1768630679202,0.001,3286.2,3285.9,0.002]
[1768630679203,2.62544979,3286.2,3285.9,0.002]
[1768630685020,0.001,3286.2,3285.9,3.2401576]
[1768630685181,12.15686996,3286.9,3286.1,2.66691942]
[1768630685380,0.78663387,3286.8,3286.1,2.66691942]
[1768630685648,0.28463387,3286.7,3286.1,2.66691942]
[1768630685804,3.12644979,3286.8,3286.3,2.66691942]
[1768630685979,0.28463429,3286.7,3286.3,2.66691942]
[1768630686180,3.12644979,3286.8,3286.3,2.66691942]
[1768630686382,6.16893053,3286.8,3286.3,2.66691942]
[1768630687316,3.12644979,3286.8,3286.3,2.66691942]
[1768630688807,0.001,3286.4,3286.3,2.66691942]
[1768630689112,3.12644979,3286.8,3286.3,6.3074908]
[1768630689316,3.12644979,3286.8,3286.3,3.26458215]
[1768630689522,3.12644979,3286.8,3286.3,2.66691942]
[1768630694133,3.12644979,3286.8,3286.3,5.70984335]
[1768630696339,6.1689369,3286.8,3286.3,2.66691942]
[1768630697139,3.12644979,3286.8,3286.3,2.66691942]
[1768630700740,0.001,3286.5,3286.3,2.66691942]
[1768630701040,0.001,3286.5,3286.4,0.59766226]